[Event "Live Chess"]
[Site "Chess.com"]
[Date "2024.06.02"]
[Round "-"]
[White "kylet1990"]
[Black "ClassyChameleon"]
[Result "0-1"]
[WhiteElo "750"]
[BlackElo "1546"]
[TimeControl "300"]
[EndTime "4:55:17 PDT"]
[Termination "ClassyChameleon won by resignation"]

1. e4 {[%clk 0:04:59.6]} 1... e5 {[%clk 0:04:58.8]} 2. Nc3 {[%clk 0:04:58.4]}
2... Nc6 {[%clk 0:04:58.2]} 3. Bc4 {[%clk 0:04:56.9]} 3... Bc5 {[%clk
0:04:57.7]} 4. Nf3 {[%clk 0:04:55.8]} 4... Nf6 {[%clk 0:04:57.2]} 5. O-O {[%clk
0:04:52.4]} 5... O-O {[%clk 0:04:56]} 6. d3 {[%clk 0:04:50.7]} 6... a6 {[%clk
0:04:55.3]} 7. Nd5 {[%clk 0:04:48.3]} 7... Nxd5 {[%clk 0:04:53.9]} 8. exd5
{[%clk 0:04:45.2]} 8... Na5 {[%clk 0:04:52.3]} 9. Bb3 {[%clk 0:04:42]} 9... d6
{[%clk 0:04:50.7]} 10. Qe2 {[%clk 0:04:30.4]} 10... Bg4 {[%clk 0:04:47.3]} 11.
h3 {[%clk 0:04:28.3]} 11... Bh5 {[%clk 0:04:46.5]} 12. Be3 {[%clk 0:04:19.2]}
12... Bxe3 {[%clk 0:04:42.2]} 13. Qxe3 {[%clk 0:04:18]} 13... Re8 {[%clk
0:04:36.6]} 14. Qe4 {[%clk 0:04:08.6]} 14... Nxb3 {[%clk 0:04:33.8]} 15. axb3
{[%clk 0:04:06.9]} 15... Qf6 {[%clk 0:04:26.3]} 16. Ra4 {[%clk 0:04:03.6]} 16...
Bxf3 {[%clk 0:04:24.4]} 17. Qxf3 {[%clk 0:04:00.4]} 17... Qxf3 {[%clk
0:04:23.9]} 18. gxf3 {[%clk 0:03:59.6]} 18... c6 {[%clk 0:04:15]} 19. dxc6
{[%clk 0:03:56.6]} 19... bxc6 {[%clk 0:04:14.9]} 20. Rg4 {[%clk 0:03:55.1]}
20... Re6 {[%clk 0:04:11.1]} 21. Kh1 {[%clk 0:03:52.1]} 21... Rg6 {[%clk
0:04:09.2]} 22. Rfg1 {[%clk 0:03:46.8]} 22... d5 {[%clk 0:04:04.8]} 23. h4
{[%clk 0:03:42.6]} 23... Rxg4 {[%clk 0:03:45.2]} 24. Rxg4 {[%clk 0:03:41.2]}
24... h5 {[%clk 0:03:43.9]} 25. Rg5 {[%clk 0:03:39.4]} 25... g6 {[%clk 0:03:42]}
26. Rxe5 {[%clk 0:03:37.1]} 26... a5 {[%clk 0:03:37.1]} 27. Kg2 {[%clk
0:03:32.7]} 27... a4 {[%clk 0:03:34]} 28. bxa4 {[%clk 0:03:29.6]} 28... Rxa4
{[%clk 0:03:33.6]} 29. c3 {[%clk 0:03:19.2]} 29... Rxh4 {[%clk 0:03:31.7]} 30.
Kg3 {[%clk 0:03:15.4]} 30... Ra4 {[%clk 0:03:28.8]} 31. Re8+ {[%clk 0:03:10.3]}
31... Kg7 {[%clk 0:03:27.4]} 32. Rc8 {[%clk 0:03:04.9]} 32... Ra6 {[%clk
0:03:23.5]} 33. Kf4 {[%clk 0:03:02.9]} 33... Kf6 {[%clk 0:03:20.2]} 34. Rd8
{[%clk 0:02:58.9]} 34... Ke7 {[%clk 0:03:17.4]} 35. Rc8 {[%clk 0:02:52.7]} 35...
f6 {[%clk 0:03:12.1]} 36. Rg8 {[%clk 0:02:48.1]} 36... g5+ {[%clk 0:03:07.2]}
37. Kf5 {[%clk 0:02:46.6]} 37... h4 {[%clk 0:02:58]} 38. Rg7+ {[%clk 0:02:40.3]}
38... Kf8 {[%clk 0:02:53.4]} 39. Kg6 {[%clk 0:02:35.6]} 39... c5 {[%clk
0:02:46.8]} 40. Rh7 {[%clk 0:02:25]} 40... Kg8 {[%clk 0:02:34.8]} 41. Rg7+
{[%clk 0:02:21.8]} 41... Kf8 {[%clk 0:02:32.7]} 42. Rf7+ {[%clk 0:02:18.6]}
42... Kg8 {[%clk 0:02:30]} 43. Rd7 {[%clk 0:02:12.4]} 43... Kf8 {[%clk
0:02:24.4]} 44. Rxd5 {[%clk 0:02:06.4]} 44... h3 {[%clk 0:02:18.4]} 45. Rd8+
{[%clk 0:01:59]} 45... Ke7 {[%clk 0:02:17]} 46. Rh8 {[%clk 0:01:57.3]} 46... Ra2
{[%clk 0:02:14.5]} 47. Rxh3 {[%clk 0:01:54.6]} 47... Rxb2 {[%clk 0:02:13.8]} 48.
Rh7+ {[%clk 0:01:50.2]} 48... Ke6 {[%clk 0:02:12.6]} 49. Rf7 {[%clk 0:01:48.1]}
49... Rxf2 {[%clk 0:02:09.1]} 50. Rxf6+ {[%clk 0:01:46.8]} 50... Ke7 {[%clk
0:02:08.3]} 51. Kxg5 {[%clk 0:01:44.4]} 51... Rc2 {[%clk 0:02:06.6]} 52. Rf4
{[%clk 0:01:27.1]} 52... Rxc3 {[%clk 0:02:05.1]} 53. Re4+ {[%clk 0:01:25.4]}
53... Kd6 {[%clk 0:02:03.8]} 54. Kf4 {[%clk 0:01:23.9]} 54... Rxd3 {[%clk
0:02:02.9]} 55. Re3 {[%clk 0:01:15.6]} 55... Rd4+ {[%clk 0:01:53.4]} 56. Kg3
{[%clk 0:01:12.3]} 56... c4 {[%clk 0:01:51.4]} 57. Kf2 {[%clk 0:01:11.3]} 57...
Kc5 {[%clk 0:01:47.1]} 58. Ke2 {[%clk 0:01:09.8]} 58... Kb4 {[%clk 0:01:45.6]}
59. Re6 {[%clk 0:01:05.4]} 59... c3 {[%clk 0:01:43.2]} 60. Rb6+ {[%clk
0:01:02.3]} 60... Ka3 {[%clk 0:01:41.7]} 61. Ra6+ {[%clk 0:00:59.1]} 61... Kb2
{[%clk 0:01:40.5]} 62. Rb6+ {[%clk 0:00:56.3]} 62... Kc1 {[%clk 0:01:36.6]} 63.
Rh6 {[%clk 0:00:48.4]} 63... c2 {[%clk 0:01:33.6]} 64. Rh1+ {[%clk 0:00:42.3]}
64... Rd1 {[%clk 0:01:33]} 65. Rh2 {[%clk 0:00:38.6]} 65... Rd2+ {[%clk
0:01:31.4]} 66. Ke3 {[%clk 0:00:31.7]} 66... Rxh2 {[%clk 0:01:31.3]} 67. f4
{[%clk 0:00:30.2]} 67... Kd1 {[%clk 0:01:30.8]} 68. f5 {[%clk 0:00:28.1]} 68...
c1=Q+ {[%clk 0:01:30.7]} 69. Kd4 {[%clk 0:00:25.3]} 69... Rh4+ {[%clk
0:01:28.7]} 0-1

[Event "Live Chess"]
[Site "Chess.com"]
[Date "2024.06.02"]
[Round "-"]
[White "Tatarinov_Maxim"]
[Black "IgorSchukin"]
[Result "1-0"]
[WhiteElo "2287"]
[BlackElo "1767"]
[TimeControl "300"]
[EndTime "4:56:04 PDT"]
[Termination "Tatarinov_Maxim won on time"]

1. d4 {[%clk 0:04:52.9]} 1... d5 {[%clk 0:04:58.8]} 2. c4 {[%clk 0:04:51.6]}
2... e5 {[%clk 0:04:57.6]} 3. dxe5 {[%clk 0:04:49.8]} 3... d4 {[%clk 0:04:56.7]}
4. Nf3 {[%clk 0:04:49.3]} 4... Nc6 {[%clk 0:04:55.9]} 5. g3 {[%clk 0:04:48.5]}
5... Bg4 {[%clk 0:04:54]} 6. Bg2 {[%clk 0:04:47.7]} 6... Qd7 {[%clk 0:04:53.2]}
7. O-O {[%clk 0:04:45.8]} 7... O-O-O {[%clk 0:04:52.1]} 8. Nbd2 {[%clk
0:04:37.6]} 8... Bh3 {[%clk 0:04:50.1]} 9. Nb3 {[%clk 0:04:29.5]} 9... Bxg2
{[%clk 0:04:48.9]} 10. Kxg2 {[%clk 0:04:29.4]} 10... h5 {[%clk 0:04:44.5]} 11.
h4 {[%clk 0:04:27.1]} 11... Qg4 {[%clk 0:04:37.5]} 12. Bf4 {[%clk 0:04:21.6]}
12... Nge7 {[%clk 0:04:35.6]} 13. Qc2 {[%clk 0:03:49.3]} 13... Ng6 {[%clk
0:04:31.4]} 14. Bg5 {[%clk 0:03:46.3]} 14... Be7 {[%clk 0:04:29.1]} 15. Bxe7
{[%clk 0:03:39.5]} 15... Ncxe7 {[%clk 0:04:16]} 16. Rad1 {[%clk 0:03:34.5]}
16... Nf5 {[%clk 0:04:03.1]} 17. Rh1 {[%clk 0:03:19.7]} 17... Rhe8 {[%clk
0:03:32]} 18. Kf1 {[%clk 0:02:31.8]} 18... Nxe5 {[%clk 0:03:19]} 19. Nxe5 {[%clk
0:02:09.7]} 19... Rxe5 {[%clk 0:03:16.4]} 20. Qd3 {[%clk 0:02:07.2]} 20... Re3
{[%clk 0:02:38.2]} 21. fxe3 {[%clk 0:01:24.8]} 21... Nxe3+ {[%clk 0:02:22.6]}
22. Ke1 {[%clk 0:01:23.7]} 22... Qxg3+ {[%clk 0:01:47.4]} 23. Kd2 {[%clk
0:01:16.8]} 23... Qf4 {[%clk 0:01:41.5]} 24. Kc1 {[%clk 0:01:10.6]} 24... Nxd1+
{[%clk 0:00:54.7]} 25. Kxd1 {[%clk 0:01:06.8]} 25... b6 {[%clk 0:00:47.3]} 26.
Kc2 {[%clk 0:00:59.6]} 26... c5 {[%clk 0:00:45]} 27. Rg1 {[%clk 0:00:51.2]}
27... g6 {[%clk 0:00:43.1]} 28. Qh3+ {[%clk 0:00:40.2]} 28... Rd7 {[%clk
0:00:32]} 29. Rf1 {[%clk 0:00:32.2]} 29... Qe4+ {[%clk 0:00:23.4]} 30. Kd2
{[%clk 0:00:20.2]} 30... f5 {[%clk 0:00:21.4]} 31. Qf3 {[%clk 0:00:18.2]} 31...
Qe7 {[%clk 0:00:13.6]} 32. Nc1 {[%clk 0:00:16.4]} 32... Kc7 {[%clk 0:00:11.3]}
33. Nd3 {[%clk 0:00:15.6]} 33... Rd6 {[%clk 0:00:08.5]} 34. Qf4 {[%clk
0:00:13.5]} 34... Kd7 {[%clk 0:00:06.8]} 35. Ne5+ {[%clk 0:00:11.8]} 35... Kd8
{[%clk 0:00:05.4]} 36. Nd3 {[%clk 0:00:11.1]} 36... Kd7 {[%clk 0:00:04.4]} 37.
Rf2 {[%clk 0:00:10.5]} 37... Re6 {[%clk 0:00:03]} 38. Rg2 {[%clk 0:00:09.5]}
38... Re3 {[%clk 0:00:01.8]} 39. Qxe3 {[%clk 0:00:07.7]} 39... Qxe3+ {[%clk
0:00:00.3]} 40. Kd1 {[%clk 0:00:07.2]} 1-0

[Event "Live Chess"]
[Site "Chess.com"]
[Date "2024.06.02"]
[Round "-"]
[White "MovebyMove"]
[Black "UshkoTheBear"]
[Result "1-0"]
[WhiteElo "2485"]
[BlackElo "2317"]
[TimeControl "300"]
[EndTime "4:56:14 PDT"]
[Termination "MovebyMove won by resignation"]

1. e4 {[%clk 0:04:55.8]} 1... e5 {[%clk 0:04:57]} 2. Nf3 {[%clk 0:04:53.8]} 2...
Nc6 {[%clk 0:04:55.7]} 3. Bc4 {[%clk 0:04:52.5]} 3... Nf6 {[%clk 0:04:54.2]} 4.
d3 {[%clk 0:04:51.3]} 4... h6 {[%clk 0:04:53.1]} 5. O-O {[%clk 0:04:42.9]} 5...
Bc5 {[%clk 0:04:40]} 6. c3 {[%clk 0:04:38.5]} 6... a5 {[%clk 0:04:36.2]} 7. Nbd2
{[%clk 0:04:27.4]} 7... Ba7 {[%clk 0:04:29.4]} 8. h3 {[%clk 0:04:21.4]} 8... d6
{[%clk 0:04:27.7]} 9. Re1 {[%clk 0:04:06.6]} 9... g5 {[%clk 0:04:22.3]} 10. d4
{[%clk 0:03:43.6]} 10... g4 {[%clk 0:04:19.6]} 11. hxg4 {[%clk 0:03:35.3]} 11...
Bxg4 {[%clk 0:04:08.4]} 12. Qb3 {[%clk 0:03:25.8]} 12... a4 {[%clk 0:03:59.7]}
13. Qc2 {[%clk 0:02:55.9]} 13... Rg8 {[%clk 0:03:47.6]} 14. b4 {[%clk
0:02:48.7]} 14... exd4 {[%clk 0:03:38.3]} 15. e5 {[%clk 0:02:35.2]} 15... dxe5
{[%clk 0:03:19.1]} 16. Nxe5 {[%clk 0:02:33.7]} 16... Nxe5 {[%clk 0:03:16.5]} 17.
Rxe5+ {[%clk 0:02:31.9]} 17... Kf8 {[%clk 0:03:15.9]} 18. Ba3 {[%clk 0:02:19.8]}
18... dxc3 {[%clk 0:03:14.2]} 19. b5+ {[%clk 0:02:13.8]} 19... Kg7 {[%clk
0:03:12.5]} 20. Ne4 {[%clk 0:01:57.7]} 20... Kh8 {[%clk 0:01:57.1]} 21. Be7
{[%clk 0:01:50.1]} 21... Nxe4 {[%clk 0:01:44.9]} 22. Bxd8 {[%clk 0:01:37.9]}
22... Bxf2+ {[%clk 0:01:25.7]} 23. Kf1 {[%clk 0:01:28.9]} 23... Raxd8 {[%clk
0:01:01]} 24. Rxe4 {[%clk 0:01:23.5]} 1-0

[Event "Live Chess"]
[Site "Chess.com"]
[Date "2024.06.02"]
[Round "-"]
[White "Bradfield133"]
[Black "friarnator"]
[Result "0-1"]
[WhiteElo "1842"]
[BlackElo "2211"]
[TimeControl "300"]
[EndTime "4:56:16 PDT"]
[Termination "friarnator won on time"]

1. c4 {[%clk 0:04:57.9]} 1... g6 {[%clk 0:04:58.4]} 2. g3 {[%clk 0:04:56.7]}
2... Bg7 {[%clk 0:04:57.9]} 3. Bg2 {[%clk 0:04:56.1]} 3... c6 {[%clk 0:04:57.4]}
4. Qa4 {[%clk 0:04:50.7]} 4... Nf6 {[%clk 0:04:56.2]} 5. Nf3 {[%clk 0:04:49.7]}
5... O-O {[%clk 0:04:55.5]} 6. O-O {[%clk 0:04:48.7]} 6... d5 {[%clk 0:04:54.9]}
7. d3 {[%clk 0:04:48.1]} 7... a6 {[%clk 0:04:52]} 8. Nbd2 {[%clk 0:04:40]} 8...
Nbd7 {[%clk 0:04:51.1]} 9. Rb1 {[%clk 0:04:29.9]} 9... e5 {[%clk 0:04:42.5]} 10.
cxd5 {[%clk 0:04:15.9]} 10... Nxd5 {[%clk 0:04:38.6]} 11. a3 {[%clk 0:04:07.4]}
11... Nc5 {[%clk 0:04:36.3]} 12. Qc2 {[%clk 0:04:04.5]} 12... Qe7 {[%clk
0:04:29]} 13. b4 {[%clk 0:03:44.4]} 13... Ne6 {[%clk 0:04:22.5]} 14. Bb2 {[%clk
0:03:38.6]} 14... Nd4 {[%clk 0:04:20.2]} 15. Nxd4 {[%clk 0:03:28.9]} 15... exd4
{[%clk 0:04:20.1]} 16. Nf3 {[%clk 0:03:26.1]} 16... Nc3 {[%clk 0:04:16]} 17. e4
{[%clk 0:03:10.4]} 17... c5 {[%clk 0:03:54.6]} 18. bxc5 {[%clk 0:02:43.8]} 18...
Qxc5 {[%clk 0:03:54.5]} 19. Rfc1 {[%clk 0:02:38.7]} 19... Be6 {[%clk 0:03:19.2]}
20. Bxc3 {[%clk 0:02:26.6]} 20... dxc3 {[%clk 0:03:15.9]} 21. d4 {[%clk
0:02:21.7]} 21... Bxd4 {[%clk 0:03:07.9]} 22. Nxd4 {[%clk 0:02:20.5]} 22... Qxd4
{[%clk 0:03:07.8]} 23. Qxc3 {[%clk 0:02:19.8]} 23... Qxc3 {[%clk 0:03:05.5]} 24.
Rxc3 {[%clk 0:02:18.1]} 24... b5 {[%clk 0:03:05.4]} 25. Rbc1 {[%clk 0:01:59]}
25... a5 {[%clk 0:02:57.2]} 26. e5 {[%clk 0:01:24.2]} 26... Rab8 {[%clk
0:02:51.5]} 27. Rc5 {[%clk 0:01:10.4]} 27... b4 {[%clk 0:02:49.7]} 28. axb4
{[%clk 0:00:33.1]} 28... axb4 {[%clk 0:02:49.6]} 29. Bd5 {[%clk 0:00:31.7]}
29... Bxd5 {[%clk 0:02:43.6]} 30. Rxd5 {[%clk 0:00:30.4]} 30... b3 {[%clk
0:02:38.9]} 31. Rb1 {[%clk 0:00:28.5]} 31... Rfc8 {[%clk 0:02:33.5]} 32. Rd2
{[%clk 0:00:14]} 32... Rc5 {[%clk 0:02:17.9]} 33. Rdb2 {[%clk 0:00:12.5]} 33...
Rcb5 {[%clk 0:02:13.4]} 34. Kf1 {[%clk 0:00:11.2]} 34... Kf8 {[%clk 0:02:12.9]}
35. Ke2 {[%clk 0:00:10.4]} 35... Ke7 {[%clk 0:02:12.8]} 36. Kd3 {[%clk 0:00:08]}
36... Ke6 {[%clk 0:02:12.7]} 37. Kc4 {[%clk 0:00:06.1]} 37... Kxe5 {[%clk
0:02:02]} 38. Rxb3 {[%clk 0:00:05]} 38... Rxb3 {[%clk 0:02:00.8]} 39. Rxb3
{[%clk 0:00:03.8]} 39... Rxb3 {[%clk 0:02:00.5]} 40. Kxb3 {[%clk 0:00:03.1]}
40... Kd4 {[%clk 0:01:59.9]} 41. Kc2 {[%clk 0:00:01.7]} 41... Ke4 {[%clk
0:01:58.3]} 42. Kd2 {[%clk 0:00:01.6]} 42... Kf3 {[%clk 0:01:57.8]} 43. Ke1
{[%clk 0:00:00.8]} 43... g5 {[%clk 0:01:55.8]} 0-1

[Event "Live Chess"]
[Site "Chess.com"]
[Date "2024.06.02"]
[Round "-"]
[White "Queensandpawns"]
[Black "slava_ukr"]
[Result "1-0"]
[WhiteElo "2260"]
[BlackElo "2373"]
[TimeControl "300"]
[EndTime "4:56:20 PDT"]
[Termination "Queensandpawns won on time"]

1. e4 {[%clk 0:04:59.7]} 1... d5 {[%clk 0:04:57.1]} 2. Nc3 {[%clk 0:04:58.7]}
2... dxe4 {[%clk 0:04:53.6]} 3. Nxe4 {[%clk 0:04:58.6]} 3... Nf6 {[%clk
0:04:52.5]} 4. Ng5 {[%clk 0:04:57.7]} 4... h6 {[%clk 0:04:47.6]} 5. Nxf7 {[%clk
0:04:56.8]} 5... Kxf7 {[%clk 0:04:46.4]} 6. Nf3 {[%clk 0:04:56.7]} 6... Nc6
{[%clk 0:04:37.9]} 7. d4 {[%clk 0:04:55.2]} 7... e6 {[%clk 0:04:34.7]} 8. Bd3
{[%clk 0:04:54.5]} 8... Be7 {[%clk 0:04:27.8]} 9. O-O {[%clk 0:04:54.1]} 9...
Rf8 {[%clk 0:04:26.5]} 10. Ne5+ {[%clk 0:04:48.9]} 10... Kg8 {[%clk 0:04:20.5]}
11. Re1 {[%clk 0:04:30.2]} 11... Nxd4 {[%clk 0:04:12.3]} 12. Ng6 {[%clk
0:04:27.5]} 12... Re8 {[%clk 0:04:08.2]} 13. Re3 {[%clk 0:03:50]} 13... Nf5
{[%clk 0:04:05.6]} 14. Rh3 {[%clk 0:03:46.7]} 14... c5 {[%clk 0:03:43]} 15. Bf4
{[%clk 0:03:43.5]} 15... c4 {[%clk 0:03:37.4]} 16. g4 {[%clk 0:03:35.6]} 16...
cxd3 {[%clk 0:03:16.1]} 17. gxf5 {[%clk 0:03:35.5]} 17... dxc2 {[%clk
0:03:08.3]} 18. Qxc2 {[%clk 0:03:27.1]} 18... exf5 {[%clk 0:03:06.9]} 19. Re1
{[%clk 0:03:09.3]} 19... Bf8 {[%clk 0:02:46.7]} 20. Qb3+ {[%clk 0:02:48.9]}
20... Kh7 {[%clk 0:02:44]} 21. Rd1 {[%clk 0:02:20.5]} 21... Qb6 {[%clk
0:02:20.7]} 22. Qf7 {[%clk 0:02:14.7]} 22... Ng4 {[%clk 0:01:27]} 23. Qxe8
{[%clk 0:01:41.2]} 23... Qxf2+ {[%clk 0:00:44]} 24. Kh1 {[%clk 0:01:39.8]} 24...
Bc5 {[%clk 0:00:19.2]} 25. Be3 {[%clk 0:01:05]} 25... Qc2 {[%clk 0:00:17.9]} 26.
Rf1 {[%clk 0:00:36]} 26... Bd7 {[%clk 0:00:14.2]} 27. Qxd7 {[%clk 0:00:30]}
27... Nxe3 {[%clk 0:00:13]} 28. Rxe3 {[%clk 0:00:17.7]} 28... Bxe3 {[%clk
0:00:12.2]} 29. Qxf5 {[%clk 0:00:16.3]} 29... Qxf5 {[%clk 0:00:10.7]} 30. Rxf5
{[%clk 0:00:16.2]} 30... Kxg6 {[%clk 0:00:10.2]} 31. Rf3 {[%clk 0:00:16.1]}
31... Bd4 {[%clk 0:00:09.3]} 32. Kg2 {[%clk 0:00:16]} 32... Rd8 {[%clk
0:00:08.6]} 33. Rb3 {[%clk 0:00:15.9]} 33... b6 {[%clk 0:00:07.3]} 34. Kh3
{[%clk 0:00:15.8]} 34... Bf6 {[%clk 0:00:06.7]} 35. Rg3+ {[%clk 0:00:15.7]}
35... Kf7 {[%clk 0:00:03.4]} 36. Rb3 {[%clk 0:00:15.6]} 36... Rd4 {[%clk
0:00:02.8]} 37. Kg2 {[%clk 0:00:15.5]} 37... Rf4 {[%clk 0:00:02.1]} 38. Ra3
{[%clk 0:00:15.4]} 38... Rg4+ {[%clk 0:00:01.5]} 39. Kf3 {[%clk 0:00:15.3]}
39... Rh4 {[%clk 0:00:00.7]} 40. Ke3 {[%clk 0:00:14.8]} 40... Rh3+ {[%clk
0:00:00.1]} 41. Kd2 {[%clk 0:00:14.6]} 1-0

[Event "Live Chess"]
[Site "Chess.com"]
[Date "2024.06.02"]
[Round "-"]
[White "MagnersCarlsberg2870"]
[Black "RuslanChessN"]
[Result "0-1"]
[WhiteElo "1770"]
[BlackElo "1913"]
[TimeControl "300"]
[EndTime "4:56:30 PDT"]
[Termination "RuslanChessN won by checkmate"]

1. d4 {[%clk 0:04:57.3]} 1... d5 {[%clk 0:04:58]} 2. e3 {[%clk 0:04:55.7]} 2...
Bf5 {[%clk 0:04:56.7]} 3. Bd3 {[%clk 0:04:54.4]} 3... Bg6 {[%clk 0:04:54.9]} 4.
Nf3 {[%clk 0:04:53]} 4... e6 {[%clk 0:04:53.3]} 5. Ne5 {[%clk 0:04:52]} 5... c5
{[%clk 0:04:50.5]} 6. Bb5+ {[%clk 0:04:48.9]} 6... Ke7 {[%clk 0:04:47.3]} 7.
Nxg6+ {[%clk 0:04:36.2]} 7... hxg6 {[%clk 0:04:45.3]} 8. c3 {[%clk 0:04:33.3]}
8... a6 {[%clk 0:04:42.1]} 9. Bd3 {[%clk 0:04:30.8]} 9... Nc6 {[%clk 0:04:39.5]}
10. Nd2 {[%clk 0:04:27.6]} 10... Nf6 {[%clk 0:04:37.5]} 11. Qe2 {[%clk
0:04:25.1]} 11... Kd7 {[%clk 0:04:34.3]} 12. h3 {[%clk 0:04:20.8]} 12... c4
{[%clk 0:04:24.4]} 13. Bc2 {[%clk 0:04:19.3]} 13... e5 {[%clk 0:04:22.7]} 14. e4
{[%clk 0:04:17.3]} 14... exd4 {[%clk 0:04:20.3]} 15. cxd4 {[%clk 0:04:04.9]}
15... Nxd4 {[%clk 0:04:17.8]} 16. Qd1 {[%clk 0:04:01.4]} 16... Bb4 {[%clk
0:04:03.7]} 17. a3 {[%clk 0:03:51.5]} 17... Bxd2+ {[%clk 0:03:58.9]} 18. Bxd2
{[%clk 0:03:50]} 18... Nxc2+ {[%clk 0:03:56]} 19. Qxc2 {[%clk 0:03:48.9]} 19...
Nxe4 {[%clk 0:03:54.5]} 20. Be3 {[%clk 0:03:37.5]} 20... f5 {[%clk 0:03:31.4]}
21. O-O-O {[%clk 0:03:35.8]} 21... Ke6 {[%clk 0:03:26.3]} 22. f3 {[%clk
0:03:26.8]} 22... Nf6 {[%clk 0:03:08.2]} 23. Bc5 {[%clk 0:03:20.3]} 23... Re8
{[%clk 0:03:00.3]} 24. Rhe1+ {[%clk 0:03:18.6]} 24... Kf7 {[%clk 0:02:57.9]} 25.
Qc3 {[%clk 0:03:04.2]} 25... Qc7 {[%clk 0:02:53.2]} 26. Bd4 {[%clk 0:02:57.2]}
26... Qc6 {[%clk 0:02:41.3]} 27. g4 {[%clk 0:02:43.2]} 27... Rxe1 {[%clk
0:02:28.3]} 28. Rxe1 {[%clk 0:02:41.8]} 28... Re8 {[%clk 0:02:26.9]} 29. g5
{[%clk 0:02:32.5]} 29... Nh5 {[%clk 0:02:08]} 30. Kb1 {[%clk 0:02:02]} 30... Nf4
{[%clk 0:02:06]} 31. Rxe8 {[%clk 0:01:52.9]} 31... Qxe8 {[%clk 0:01:46.1]} 32.
Bxg7 {[%clk 0:01:51.6]} 32... Nd3 {[%clk 0:01:32.7]} 33. Qf6+ {[%clk 0:01:46.8]}
33... Kg8 {[%clk 0:01:31.1]} 34. Bh6 {[%clk 0:01:39.7]} 34... Qe1+ {[%clk
0:01:17.4]} 35. Ka2 {[%clk 0:01:33.7]} 35... Nc1+ {[%clk 0:01:15.3]} 36. Kb1
{[%clk 0:01:32.7]} 36... Nb3+ {[%clk 0:01:08.3]} 37. Kc2 {[%clk 0:01:29]} 37...
Qc1# {[%clk 0:01:05.9]} 0-1

[Event "Live Chess"]
[Site "Chess.com"]
[Date "2024.06.02"]
[Round "-"]
[White "CarmelJane"]
[Black "Zhevzh1k7"]
[Result "1-0"]
[WhiteElo "2035"]
[BlackElo "1112"]
[TimeControl "300"]
[EndTime "4:56:38 PDT"]
[Termination "CarmelJane won by checkmate"]

1. e4 {[%clk 0:04:58.1]} 1... c6 {[%clk 0:04:58.4]} 2. Nc3 {[%clk 0:04:55.8]}
2... d5 {[%clk 0:04:53.6]} 3. Nf3 {[%clk 0:04:55.1]} 3... Bg4 {[%clk 0:04:49.3]}
4. Be2 {[%clk 0:04:51.7]} 4... Qb6 {[%clk 0:04:44]} 5. O-O {[%clk 0:04:48.4]}
5... dxe4 {[%clk 0:04:42.2]} 6. Nxe4 {[%clk 0:04:45.8]} 6... Nf6 {[%clk
0:04:40.4]} 7. Ng3 {[%clk 0:04:39.6]} 7... e6 {[%clk 0:04:35.4]} 8. h3 {[%clk
0:04:38.9]} 8... Bxf3 {[%clk 0:04:32.3]} 9. Bxf3 {[%clk 0:04:38.8]} 9... Bc5
{[%clk 0:04:28.4]} 10. c3 {[%clk 0:04:35.3]} 10... Nbd7 {[%clk 0:04:26.6]} 11.
d4 {[%clk 0:04:33.9]} 11... Bd6 {[%clk 0:04:24.3]} 12. Ne4 {[%clk 0:04:21.5]}
12... Nxe4 {[%clk 0:04:22.8]} 13. Bxe4 {[%clk 0:04:21.4]} 13... O-O {[%clk
0:04:17.7]} 14. Qh5 {[%clk 0:04:18.7]} 14... h6 {[%clk 0:04:12.2]} 15. Bc2
{[%clk 0:04:16.1]} 15... Nf6 {[%clk 0:04:10.9]} 16. Qe2 {[%clk 0:04:14.1]} 16...
Rfe8 {[%clk 0:04:05.1]} 17. Qd3 {[%clk 0:04:08.6]} 17... c5 {[%clk 0:03:58.7]}
18. Be3 {[%clk 0:03:54.7]} 18... cxd4 {[%clk 0:03:54.3]} 19. Bxd4 {[%clk
0:03:53.2]} 19... Qd8 {[%clk 0:03:47.9]} 20. Bxf6 {[%clk 0:03:49.9]} 20... gxf6
{[%clk 0:03:44.1]} 21. Qh7+ {[%clk 0:03:48.2]} 21... Kf8 {[%clk 0:03:42.4]} 22.
Qxh6+ {[%clk 0:03:42.8]} 22... Ke7 {[%clk 0:03:40.9]} 23. Rfd1 {[%clk
0:03:40.7]} 23... Rh8 {[%clk 0:03:33]} 24. Qe3 {[%clk 0:03:38.8]} 24... Qc7
{[%clk 0:03:16.3]} 25. Ba4 {[%clk 0:03:30.1]} 25... Bh2+ {[%clk 0:02:54.5]} 26.
Kf1 {[%clk 0:03:26.7]} 26... Qc4+ {[%clk 0:02:45.8]} 27. Rd3 {[%clk 0:03:14.9]}
27... Qxa4 {[%clk 0:02:41.9]} 28. Qc5+ {[%clk 0:03:10.5]} 28... Ke8 {[%clk
0:02:31.9]} 29. Rad1 {[%clk 0:02:54.7]} 29... Qa6 {[%clk 0:02:04.2]} 30. c4
{[%clk 0:02:47.8]} 30... b6 {[%clk 0:01:56.6]} 31. Qc6+ {[%clk 0:02:44.5]} 31...
Kf8 {[%clk 0:01:48.8]} 32. Qxa8+ {[%clk 0:02:41.8]} 32... Kg7 {[%clk 0:01:46.2]}
33. Qe4 {[%clk 0:02:41.1]} 33... f5 {[%clk 0:01:25.5]} 34. Qd4+ {[%clk
0:02:37.5]} 34... Kh7 {[%clk 0:01:21.5]} 35. Qh4+ {[%clk 0:02:32.2]} 35... Kg7
{[%clk 0:01:16.7]} 36. Qg5+ {[%clk 0:02:31.3]} 36... Kh7 {[%clk 0:01:14.4]} 37.
Rd4 {[%clk 0:02:29.3]} 37... Rg8 {[%clk 0:00:55.4]} 38. Rh4# {[%clk 0:02:26.8]}
1-0

[Event "Live Chess"]
[Site "Chess.com"]
[Date "2024.06.02"]
[Round "-"]
[White "kylet1990"]
[Black "Dhaydon19"]
[Result "0-1"]
[WhiteElo "750"]
[BlackElo "2637"]
[TimeControl "300"]
[EndTime "4:56:45 PDT"]
[Termination "Dhaydon19 won by resignation"]

1. e4 {[%clk 0:04:57.2]} 1... c6 {[%clk 0:04:58.9]} 2. Nc3 {[%clk 0:04:55.5]}
2... d5 {[%clk 0:04:58.5]} 3. Nf3 {[%clk 0:04:52.6]} 3... dxe4 {[%clk
0:04:55.7]} 4. Nxe4 {[%clk 0:04:51.1]} 4... Nf6 {[%clk 0:04:55.4]} 5. Nxf6+
{[%clk 0:04:49.9]} 5... exf6 {[%clk 0:04:54.4]} 6. d4 {[%clk 0:04:48.5]} 6...
Bd6 {[%clk 0:04:53.3]} 7. Bc4 {[%clk 0:04:46.5]} 7... O-O {[%clk 0:04:52]} 8.
O-O {[%clk 0:04:44.7]} 8... Bg4 {[%clk 0:04:50.8]} 9. h3 {[%clk 0:04:43.3]} 9...
Bh5 {[%clk 0:04:49.9]} 10. g4 {[%clk 0:04:41.9]} 10... Bg6 {[%clk 0:04:48.5]}
11. Bf4 {[%clk 0:04:39.6]} 11... Bxf4 {[%clk 0:04:46.7]} 0-1